[Event "Live Chess"]
[Site "Chess.com"]
[Date "2023.05.20"]
[Round "-"]
[White "mattihelenius2"]
[Black "YF22Raptor"]
[Result "0-1"]
[WhiteElo "445"]
[BlackElo "1007"]
[TimeControl "300"]
[EndTime "10:03:57 PDT"]
[Termination "YF22Raptor won by resignation"]

1. d4 {[%clk 0:04:56.6]} 1... c6 {[%clk 0:04:59.5]} 2. c3 {[%clk 0:04:55.4]}
2... d5 {[%clk 0:04:59.1]} 3. Nf3 {[%clk 0:04:52.3]} 3... Nf6 {[%clk 0:04:58.6]}
4. Ne5 {[%clk 0:04:48.6]} 4... Bg4 {[%clk 0:04:58.2]} 5. Bg5 {[%clk 0:04:42.6]}
5... Bf5 {[%clk 0:04:54.2]} 6. Nd2 {[%clk 0:04:39.5]} 6... h6 {[%clk 0:04:52.9]}
7. Bxf6 {[%clk 0:04:37.8]} 7... exf6 {[%clk 0:04:52.1]} 8. Ndf3 {[%clk
0:04:34.4]} 8... fxe5 {[%clk 0:04:49.4]} 9. Nxe5 {[%clk 0:04:29]} 9... Bd6
{[%clk 0:04:48.6]} 10. e3 {[%clk 0:04:17.6]} 10... Nd7 {[%clk 0:04:46.6]} 11.
Nxd7 {[%clk 0:04:13.6]} 11... Qxd7 {[%clk 0:04:46.1]} 12. Bd3 {[%clk 0:04:09]}
12... Bxd3 {[%clk 0:04:44.6]} 13. Qxd3 {[%clk 0:04:08.9]} 13... O-O {[%clk
0:04:44]} 14. Rd1 {[%clk 0:04:05.1]} 14... c5 {[%clk 0:04:29.3]} 15. O-O {[%clk
0:03:39.6]} 15... c4 {[%clk 0:04:27.7]} 16. Qd2 {[%clk 0:03:37.3]} 16... b5
{[%clk 0:04:25.8]} 17. Qe2 {[%clk 0:03:34.6]} 17... a5 {[%clk 0:04:24.8]} 18. h3
{[%clk 0:03:32]} 18... b4 {[%clk 0:04:23.7]} 19. cxb4 {[%clk 0:03:26.8]} 19...
axb4 {[%clk 0:04:22.3]} 20. Ra1 {[%clk 0:03:23.1]} 20... Ra6 {[%clk 0:04:08.7]}
21. a3 {[%clk 0:03:13]} 21... bxa3 {[%clk 0:04:06.5]} 22. Rxa3 {[%clk
0:03:11.7]} 22... Bxa3 {[%clk 0:04:05.1]} 23. bxa3 {[%clk 0:03:11.2]} 23... Rxa3
{[%clk 0:04:04.3]} 24. Rd1 {[%clk 0:03:08.3]} 24... Qb5 {[%clk 0:04:02]} 25. Qc2
{[%clk 0:03:00.7]} 25... Re8 {[%clk 0:03:58.6]} 26. Qf5 {[%clk 0:02:54.3]} 26...
Qb3 {[%clk 0:03:50.5]} 27. Re1 {[%clk 0:02:51.1]} 27... Rd8 {[%clk 0:03:42.6]}
28. Rb1 {[%clk 0:02:43.9]} 28... Qd3 {[%clk 0:03:36.9]} 29. Qf3 {[%clk
0:02:39.2]} 29... Qxb1+ {[%clk 0:03:35.3]} 30. Kh2 {[%clk 0:02:36.3]} 30... Ra1
{[%clk 0:03:32.3]} 31. Kg3 {[%clk 0:02:34.5]} 31... Qe4 {[%clk 0:03:30]} 32.
Qxe4 {[%clk 0:02:33.2]} 32... dxe4 {[%clk 0:03:29.3]} 33. Kf4 {[%clk 0:02:32.5]}
33... c3 {[%clk 0:03:28.5]} 34. Kxe4 {[%clk 0:02:31.5]} 34... c2 {[%clk
0:03:27.9]} 35. f4 {[%clk 0:02:31.1]} 35... c1=Q {[%clk 0:03:26.8]} 0-1

[Event "Live Chess"]
[Site "Chess.com"]
[Date "2023.05.20"]
[Round "-"]
[White "vinni3012"]
[Black "therealab0ne"]
[Result "1-0"]
[WhiteElo "1862"]
[BlackElo "677"]
[TimeControl "300"]
[EndTime "10:04:02 PDT"]
[Termination "vinni3012 won on time"]

1. d4 {[%clk 0:04:58.1]} 1... d5 {[%clk 0:04:58.7]} 2. c4 {[%clk 0:04:54.5]}
2... e6 {[%clk 0:04:58.2]} 3. Nc3 {[%clk 0:04:53.2]} 3... Nf6 {[%clk 0:04:57.6]}
4. Nf3 {[%clk 0:04:51.6]} 4... c5 {[%clk 0:04:57.1]} 5. cxd5 {[%clk 0:04:46.7]}
5... exd5 {[%clk 0:04:56.5]} 6. Bg5 {[%clk 0:04:45.1]} 6... Be7 {[%clk
0:04:54.9]} 7. e3 {[%clk 0:04:40.6]} 7... Nc6 {[%clk 0:04:54]} 8. Bb5 {[%clk
0:04:38.8]} 8... O-O {[%clk 0:04:52.1]} 9. O-O {[%clk 0:04:36.5]} 9... cxd4
{[%clk 0:04:33.1]} 10. Nxd4 {[%clk 0:04:35.3]} 10... Nxd4 {[%clk 0:04:15.6]} 11.
Qxd4 {[%clk 0:04:31.7]} 11... a6 {[%clk 0:03:47.5]} 12. Be2 {[%clk 0:04:01.8]}
12... b5 {[%clk 0:03:22.1]} 13. Bf3 {[%clk 0:03:57.7]} 13... Bb7 {[%clk
0:03:20.5]} 14. Rfd1 {[%clk 0:03:26.5]} 14... b4 {[%clk 0:02:34.6]} 15. Ne2
{[%clk 0:02:53.1]} 15... Rc8 {[%clk 0:02:33]} 16. Rac1 {[%clk 0:02:48.2]} 16...
Ne4 {[%clk 0:02:16.1]} 17. Bxe4 {[%clk 0:02:33.1]} 17... dxe4 {[%clk 0:02:14.7]}
18. Qxd8 {[%clk 0:02:23.2]} 18... Rcxd8 {[%clk 0:02:07.7]} 19. Bxe7 {[%clk
0:02:21.3]} 19... Rxd1+ {[%clk 0:02:03.2]} 20. Rxd1 {[%clk 0:02:21.2]} 20... Rc8
{[%clk 0:01:58.8]} 21. Nd4 {[%clk 0:02:13.1]} 21... Bd5 {[%clk 0:01:24.5]} 22.
Bxb4 {[%clk 0:01:52.2]} 22... Bxa2 {[%clk 0:01:09.7]} 23. b3 {[%clk 0:01:50.8]}
23... a5 {[%clk 0:00:48.9]} 24. Bxa5 {[%clk 0:01:43]} 24... Kf8 {[%clk
0:00:46.6]} 25. h3 {[%clk 0:01:31.3]} 25... h5 {[%clk 0:00:21.8]} 26. Ra1 {[%clk
0:01:28.1]} 26... Bxb3 {[%clk 0:00:14]} 27. Nxb3 {[%clk 0:01:28]} 27... Rc2
{[%clk 0:00:12.6]} 28. Nd4 {[%clk 0:01:26.3]} 28... Rc5 {[%clk 0:00:01.3]} 29.
Bb4 {[%clk 0:01:24.9]} 1-0

[Event "Live Chess"]
[Site "Chess.com"]
[Date "2023.05.20"]
[Round "-"]
[White "LiamBellwood"]
[Black "alexlines8"]
[Result "1-0"]
[WhiteElo "2093"]
[BlackElo "1270"]
[TimeControl "300"]
[EndTime "10:04:11 PDT"]
[Termination "LiamBellwood won by resignation"]

1. d4 {[%clk 0:04:54.2]} 1... Nf6 {[%clk 0:04:56.9]} 2. Nc3 {[%clk 0:04:52]}
2... d5 {[%clk 0:04:54.3]} 3. Bf4 {[%clk 0:04:51.4]} 3... c6 {[%clk 0:04:50.8]}
4. e3 {[%clk 0:04:50.7]} 4... Bf5 {[%clk 0:04:49.6]} 5. f3 {[%clk 0:04:49.7]}
5... e6 {[%clk 0:04:46.3]} 6. g4 {[%clk 0:04:49.1]} 6... Bg6 {[%clk 0:04:41.5]}
7. h4 {[%clk 0:04:49]} 7... h5 {[%clk 0:04:37.7]} 8. g5 {[%clk 0:04:47.3]} 8...
Nfd7 {[%clk 0:04:31.7]} 9. Bd3 {[%clk 0:04:47.2]} 9... Bxd3 {[%clk 0:04:28.9]}
10. Qxd3 {[%clk 0:04:47.1]} 10... g6 {[%clk 0:04:24.8]} 11. Nge2 {[%clk
0:04:45.8]} 11... Bb4 {[%clk 0:04:12]} 12. e4 {[%clk 0:04:42.2]} 12... Bxc3+
{[%clk 0:04:08.9]} 13. Nxc3 {[%clk 0:04:41.6]} 13... Qb6 {[%clk 0:03:48.8]} 14.
exd5 {[%clk 0:04:37.7]} 14... cxd5 {[%clk 0:03:47]} 15. Nb5 {[%clk 0:04:31.1]}
15... Nc6 {[%clk 0:03:12.5]} 16. Nc7+ {[%clk 0:04:27.3]} 16... Ke7 {[%clk
0:03:04.9]} 17. Nxa8 {[%clk 0:04:23.1]} 17... Rxa8 {[%clk 0:03:02.5]} 18. O-O-O
{[%clk 0:04:15.4]} 18... Nb4 {[%clk 0:02:55.9]} 19. Qa3 {[%clk 0:04:14.5]} 19...
a5 {[%clk 0:02:50]} 20. c3 {[%clk 0:03:59.8]} 20... Qc6 {[%clk 0:02:38.2]} 21.
Kb1 {[%clk 0:03:56.2]} 21... Nb6 {[%clk 0:02:11.7]} 22. cxb4 {[%clk 0:03:48.8]}
22... axb4 {[%clk 0:02:09.3]} 23. Qxb4+ {[%clk 0:03:46.6]} 23... Ke8 {[%clk
0:02:06.1]} 24. Rc1 {[%clk 0:03:39.5]} 24... Qd7 {[%clk 0:02:01.8]} 25. Qxb6
{[%clk 0:03:38]} 1-0

[Event "Live Chess"]
[Site "Chess.com"]
[Date "2023.05.20"]
[Round "-"]
[White "viktorskliarov"]
[Black "onemoretime1975"]
[Result "1-0"]
[WhiteElo "2648"]
[BlackElo "1909"]
[TimeControl "300"]
[EndTime "10:04:14 PDT"]
[Termination "viktorskliarov won by resignation"]

1. e4 {[%clk 0:04:58.5]} 1... e6 {[%clk 0:04:58.1]} 2. d4 {[%clk 0:04:55.5]}
2... d5 {[%clk 0:04:56.9]} 3. e5 {[%clk 0:04:55]} 3... c5 {[%clk 0:04:54.5]} 4.
c3 {[%clk 0:04:53.9]} 4... Nc6 {[%clk 0:04:53.1]} 5. Nf3 {[%clk 0:04:51.4]} 5...
Bd7 {[%clk 0:04:51.9]} 6. a3 {[%clk 0:04:50.6]} 6... Qb6 {[%clk 0:04:49.8]} 7.
b4 {[%clk 0:04:49.6]} 7... cxd4 {[%clk 0:04:47.6]} 8. cxd4 {[%clk 0:04:49.5]}
8... a5 {[%clk 0:04:44.1]} 9. b5 {[%clk 0:04:45.7]} 9... Na7 {[%clk 0:04:37.3]}
10. a4 {[%clk 0:04:45]} 10... Bb4+ {[%clk 0:04:34.4]} 11. Bd2 {[%clk 0:04:41.8]}
11... Bxd2+ {[%clk 0:04:27.2]} 12. Nbxd2 {[%clk 0:04:35.5]} 12... Rc8 {[%clk
0:04:22.6]} 13. Bd3 {[%clk 0:04:32.1]} 13... Ne7 {[%clk 0:04:19.4]} 14. O-O
{[%clk 0:04:30.1]} 14... g6 {[%clk 0:04:09.7]} 15. Nb3 {[%clk 0:04:16]} 15...
Qd8 {[%clk 0:04:03.8]} 16. Qd2 {[%clk 0:04:07.9]} 16... b6 {[%clk 0:04:01.8]}
17. Rac1 {[%clk 0:03:57.5]} 17... h5 {[%clk 0:03:49.2]} 18. Rxc8 {[%clk
0:03:15]} 18... Naxc8 {[%clk 0:03:45.2]} 19. Nc1 {[%clk 0:03:13.9]} 19... Nf5
{[%clk 0:03:38.4]} 20. Bxf5 {[%clk 0:03:12.5]} 20... exf5 {[%clk 0:03:33.7]} 21.
Nd3 {[%clk 0:03:05.6]} 21... Ne7 {[%clk 0:03:16.9]} 22. Rc1 {[%clk 0:03:01.1]}
22... O-O {[%clk 0:03:11.8]} 23. Qh6 {[%clk 0:02:59.1]} 23... f6 {[%clk
0:02:36.2]} 24. exf6 {[%clk 0:02:57]} 24... Rxf6 {[%clk 0:02:28.1]} 25. Ng5
{[%clk 0:02:55.7]} 25... Qe8 {[%clk 0:02:04.6]} 26. Qh7+ {[%clk 0:02:52.4]}
26... Kf8 {[%clk 0:02:03.3]} 27. Ne5 {[%clk 0:02:44.7]} 27... Be6 {[%clk
0:01:52.9]} 28. Qh8+ {[%clk 0:02:35.4]} 28... Bg8 {[%clk 0:01:46]} 29. Qxf6+
{[%clk 0:02:28.1]} 1-0

[Event "Live Chess"]
[Site "Chess.com"]
[Date "2023.05.20"]
[Round "-"]
[White "Ninifu"]
[Black "martinsmartin63"]
[Result "1-0"]
[WhiteElo "1978"]
[BlackElo "760"]
[TimeControl "300"]
[EndTime "10:04:18 PDT"]
[Termination "Ninifu won by resignation"]

1. d4 {[%clk 0:04:56.3]} 1... d5 {[%clk 0:04:55.1]} 2. c4 {[%clk 0:04:55]} 2...
e6 {[%clk 0:04:52.3]} 3. Nf3 {[%clk 0:04:52.1]} 3... c6 {[%clk 0:04:49.2]} 4. g3
{[%clk 0:04:51.2]} 4... Bb4+ {[%clk 0:04:45.1]} 5. Bd2 {[%clk 0:04:49.6]} 5...
Bxd2+ {[%clk 0:04:43.1]} 6. Nbxd2 {[%clk 0:04:48.9]} 6... Qa5 {[%clk 0:04:38]}
7. Bg2 {[%clk 0:04:47.2]} 7... Nf6 {[%clk 0:04:32.1]} 8. Qc2 {[%clk 0:04:44.4]}
8... Qb4 {[%clk 0:04:28.1]} 9. O-O {[%clk 0:04:40.9]} 9... Ne4 {[%clk
0:04:22.6]} 10. Nxe4 {[%clk 0:04:38.6]} 10... dxe4 {[%clk 0:04:20.3]} 11. Ne5
{[%clk 0:04:33.4]} 11... Nd7 {[%clk 0:04:12.2]} 12. Qxe4 {[%clk 0:04:26.8]}
12... Nxe5 {[%clk 0:04:06.1]} 13. dxe5 {[%clk 0:04:22.8]} 13... O-O {[%clk
0:03:50.3]} 14. b3 {[%clk 0:04:20.7]} 14... Qc3 {[%clk 0:03:43.9]} 15. Rfc1
{[%clk 0:04:15.8]} 15... Qb4 {[%clk 0:03:20.3]} 16. c5 {[%clk 0:04:10.2]} 16...
Qxe4 {[%clk 0:03:13]} 17. Bxe4 {[%clk 0:04:09.2]} 17... Bd7 {[%clk 0:03:09.9]}
18. Rd1 {[%clk 0:04:07.6]} 18... Rad8 {[%clk 0:03:05.5]} 19. Rd6 {[%clk
0:04:06.7]} 19... f6 {[%clk 0:02:57.6]} 20. Rad1 {[%clk 0:03:58.3]} 20... fxe5
{[%clk 0:02:54.8]} 21. Rxd7 {[%clk 0:03:56.2]} 21... Rxd7 {[%clk 0:02:49.9]} 22.
Rxd7 {[%clk 0:03:55.2]} 22... Rf6 {[%clk 0:02:38.6]} 23. Bxh7+ {[%clk
0:03:53.8]} 23... Kxh7 {[%clk 0:02:34.3]} 24. Rxb7 {[%clk 0:03:52.9]} 24... Rf5
{[%clk 0:02:27.9]} 25. Rc7 {[%clk 0:03:50.3]} 25... e4 {[%clk 0:02:26]} 26. Rxc6
{[%clk 0:03:48.2]} 26... Rd5 {[%clk 0:02:23.4]} 27. b4 {[%clk 0:03:44.5]} 27...
Rd1+ {[%clk 0:02:20.6]} 28. Kg2 {[%clk 0:03:43]} 28... Rd2 {[%clk 0:02:18.4]}
29. Rxe6 {[%clk 0:03:39.2]} 29... Rxe2 {[%clk 0:02:15.8]} 30. c6 {[%clk
0:03:35]} 30... e3 {[%clk 0:02:13.8]} 31. Rxe3 {[%clk 0:03:33.3]} 31... Rxa2
{[%clk 0:02:08]} 32. Rc3 {[%clk 0:03:31.2]} 32... Rb2 {[%clk 0:02:01.6]} 33. c7
{[%clk 0:03:29.6]} 33... Rxb4 {[%clk 0:01:39.9]} 34. c8=Q {[%clk 0:03:25.3]} 1-0

[Event "Live Chess"]
[Site "Chess.com"]
[Date "2023.05.20"]
[Round "-"]
[White "domrobson"]
[Black "PackedNote"]
[Result "1-0"]
[WhiteElo "1737"]
[BlackElo "784"]
[TimeControl "300"]
[EndTime "10:04:20 PDT"]
[Termination "domrobson won by checkmate"]

1. d4 {[%clk 0:04:59]} 1... d6 {[%clk 0:04:59.4]} 2. c4 {[%clk 0:04:58]} 2...
Nf6 {[%clk 0:04:58.7]} 3. Nc3 {[%clk 0:04:54.5]} 3... g6 {[%clk 0:04:57.8]} 4.
e4 {[%clk 0:04:53.3]} 4... Bg7 {[%clk 0:04:56.5]} 5. Be2 {[%clk 0:04:53]} 5...
O-O {[%clk 0:04:54.8]} 6. Bg5 {[%clk 0:04:51.3]} 6... Nbd7 {[%clk 0:04:53.4]} 7.
Qd2 {[%clk 0:04:48.3]} 7... e5 {[%clk 0:04:42.2]} 8. d5 {[%clk 0:04:45.7]} 8...
c6 {[%clk 0:04:35.2]} 9. h4 {[%clk 0:04:41.5]} 9... cxd5 {[%clk 0:04:30]} 10.
cxd5 {[%clk 0:04:39.1]} 10... Nc5 {[%clk 0:04:23.6]} 11. f3 {[%clk 0:04:36.3]}
11... Bd7 {[%clk 0:04:13.1]} 12. g4 {[%clk 0:04:32.8]} 12... Qb6 {[%clk
0:03:59.2]} 13. Be3 {[%clk 0:04:27.1]} 13... Qc7 {[%clk 0:03:33.4]} 14. Nh3
{[%clk 0:04:24]} 14... b6 {[%clk 0:03:28.2]} 15. Nf2 {[%clk 0:03:42.9]} 15...
Rfe8 {[%clk 0:03:18]} 16. h5 {[%clk 0:03:36.9]} 16... gxh5 {[%clk 0:03:08.6]}
17. g5 {[%clk 0:03:26.7]} 17... Qd8 {[%clk 0:02:46.9]} 18. gxf6 {[%clk
0:03:25.4]} 18... Qxf6 {[%clk 0:02:46.8]} 19. O-O-O {[%clk 0:03:13.9]} 19... Qd8
{[%clk 0:02:20.9]} 20. Rxh5 {[%clk 0:03:11]} 20... Bf8 {[%clk 0:02:16.2]} 21.
Rdh1 {[%clk 0:03:07.8]} 21... f5 {[%clk 0:02:03.1]} 22. Bg5 {[%clk 0:02:57.1]}
22... Qc8 {[%clk 0:01:57.7]} 23. Rxh7 {[%clk 0:02:47.5]} 23... Bg7 {[%clk
0:01:46.6]} 24. Rxg7+ {[%clk 0:02:32.4]} 24... Kxg7 {[%clk 0:01:44.8]} 25. Bh6+
{[%clk 0:02:31]} 25... Kf6 {[%clk 0:01:39.2]} 26. Qg5+ {[%clk 0:02:23.2]} 26...
Kf7 {[%clk 0:01:37]} 27. Qg7# {[%clk 0:02:21.3]} 1-0

[Event "Live Chess"]
[Site "Chess.com"]
[Date "2023.05.20"]
[Round "-"]
[White "Chesscoach_Golichenko"]
[Black "Inglaterra"]
[Result "1-0"]
[WhiteElo "2647"]
[BlackElo "2082"]
[TimeControl "300"]
[EndTime "10:04:27 PDT"]
[Termination "Chesscoach_Golichenko won by resignation"]

1. d4 {[%clk 0:04:57.7]} 1... Nf6 {[%clk 0:04:57.8]} 2. c4 {[%clk 0:04:55.4]}
2... e6 {[%clk 0:04:57]} 3. Nc3 {[%clk 0:04:54.8]} 3... d5 {[%clk 0:04:56.2]} 4.
Nf3 {[%clk 0:04:53.2]} 4... Be7 {[%clk 0:04:54.4]} 5. Bf4 {[%clk 0:04:50.7]}
5... a6 {[%clk 0:04:52.2]} 6. e3 {[%clk 0:04:49.7]} 6... O-O {[%clk 0:04:49.8]}
7. h3 {[%clk 0:04:47.9]} 7... dxc4 {[%clk 0:04:40.5]} 8. Bxc4 {[%clk 0:04:45.6]}
8... c5 {[%clk 0:04:40]} 9. O-O {[%clk 0:04:42.8]} 9... b5 {[%clk 0:04:36.9]}
10. Be2 {[%clk 0:04:36.8]} 10... Bb7 {[%clk 0:04:36.3]} 11. dxc5 {[%clk
0:04:30.2]} 11... Bxc5 {[%clk 0:04:31.3]} 12. Rc1 {[%clk 0:04:28.9]} 12... Nbd7
{[%clk 0:04:24]} 13. a3 {[%clk 0:04:24.2]} 13... Qb6 {[%clk 0:03:51]} 14. b4
{[%clk 0:04:18.9]} 14... Be7 {[%clk 0:03:48.8]} 15. Qb3 {[%clk 0:04:17.5]} 15...
Rac8 {[%clk 0:03:41.7]} 16. Rfd1 {[%clk 0:04:14.5]} 16... h6 {[%clk 0:03:35]}
17. Nd4 {[%clk 0:03:55.1]} 17... Nd5 {[%clk 0:03:25.4]} 18. Bf3 {[%clk
0:03:47.9]} 18... Nxc3 {[%clk 0:03:16.8]} 19. Rxc3 {[%clk 0:03:36.4]} 19... Rxc3
{[%clk 0:03:13.8]} 20. Qxc3 {[%clk 0:03:34.7]} 20... Rc8 {[%clk 0:03:08.6]} 21.
Qb3 {[%clk 0:03:31.3]} 21... Bxf3 {[%clk 0:03:01.8]} 22. Nxf3 {[%clk 0:03:29.2]}
22... Nf6 {[%clk 0:02:55.4]} 23. Ne5 {[%clk 0:03:25.6]} 23... Nd5 {[%clk
0:02:46.9]} 24. Bg3 {[%clk 0:03:22.7]} 24... Rc3 {[%clk 0:02:11.6]} 25. Qb2
{[%clk 0:03:17.2]} 25... Rc8 {[%clk 0:02:00.6]} 26. e4 {[%clk 0:03:11.7]} 26...
Nf6 {[%clk 0:01:53.5]} 27. Nd7 {[%clk 0:03:05.5]} 27... Nxd7 {[%clk 0:01:51]}
28. Rxd7 {[%clk 0:03:05.4]} 28... Bf8 {[%clk 0:01:37.7]} 29. Qd2 {[%clk
0:02:59.1]} 29... Qc6 {[%clk 0:01:32.6]} 30. Kh2 {[%clk 0:02:55]} 30... Qxe4
{[%clk 0:01:05.8]} 31. Rxf7 {[%clk 0:02:53.1]} 31... Kxf7 {[%clk 0:01:00]} 32.
Qd7+ {[%clk 0:02:51.1]} 32... Be7 {[%clk 0:00:57.8]} 33. Qxc8 {[%clk 0:02:51]}
33... a5 {[%clk 0:00:37.8]} 34. Qd7 {[%clk 0:02:45.2]} 34... axb4 {[%clk
0:00:34.5]} 35. Bd6 {[%clk 0:02:42.3]} 35... Qh4 {[%clk 0:00:26.8]} 36. axb4
{[%clk 0:02:40.4]} 36... Qf6 {[%clk 0:00:23.4]} 37. f4 {[%clk 0:02:07.2]} 37...
g5 {[%clk 0:00:19.9]} 38. fxg5 {[%clk 0:02:03]} 38... hxg5 {[%clk 0:00:19.5]}
39. Qxe7+ {[%clk 0:02:00.7]} 39... Qxe7 {[%clk 0:00:19.4]} 40. Bxe7 {[%clk
0:02:00.3]} 40... Kxe7 {[%clk 0:00:17.5]} 41. Kg3 {[%clk 0:02:00.2]} 41... Kf6
{[%clk 0:00:16.9]} 42. Kf3 {[%clk 0:01:58.9]} 42... Kf5 {[%clk 0:00:16]} 43. g3
{[%clk 0:01:56.4]} 43... e5 {[%clk 0:00:13.8]} 44. h4 {[%clk 0:01:52.5]} 44...
g4+ {[%clk 0:00:11.3]} 45. Ke3 {[%clk 0:01:50.1]} 45... Kf6 {[%clk 0:00:08.7]}
46. Ke4 {[%clk 0:01:48.7]} 46... Ke6 {[%clk 0:00:08.1]} 47. h5 {[%clk
0:01:46.9]} 47... Kf6 {[%clk 0:00:07.8]} 48. h6 {[%clk 0:01:46.3]} 48... Kg6
{[%clk 0:00:07.3]} 49. Kxe5 {[%clk 0:01:45.7]} 49... Kxh6 {[%clk 0:00:06.7]} 50.
Kf5 {[%clk 0:01:44.8]} 50... Kh5 {[%clk 0:00:06.4]} 51. Kf4 {[%clk 0:01:44]} 1-0

[Event "Live Chess"]
[Site "Chess.com"]
[Date "2023.05.20"]
[Round "-"]
[White "friarnator"]
[Black "DenDenTie"]
[Result "1-0"]
[WhiteElo "1982"]
[BlackElo "1505"]
[TimeControl "300"]
[EndTime "10:04:32 PDT"]
[Termination "friarnator won on time"]

1. e4 {[%clk 0:04:58]} 1... e5 {[%clk 0:04:58.5]} 2. d4 {[%clk 0:04:57.2]} 2...
d6 {[%clk 0:04:54.6]} 3. Nf3 {[%clk 0:04:56.3]} 3... Nf6 {[%clk 0:04:52.2]} 4.
dxe5 {[%clk 0:04:54.6]} 4... Nxe4 {[%clk 0:04:47]} 5. Bc4 {[%clk 0:04:51]} 5...
Be6 {[%clk 0:04:43.3]} 6. Bd5 {[%clk 0:04:45.4]} 6... c6 {[%clk 0:04:38.4]} 7.
Bxe4 {[%clk 0:04:43.9]} 7... d5 {[%clk 0:04:36.6]} 8. Bd3 {[%clk 0:04:42.2]}
8... Nd7 {[%clk 0:04:34.7]} 9. O-O {[%clk 0:04:40.3]} 9... Bc5 {[%clk
0:04:33.6]} 10. Bg5 {[%clk 0:04:37.1]} 10... Qc7 {[%clk 0:04:25.2]} 11. Nbd2
{[%clk 0:04:34.1]} 11... O-O {[%clk 0:04:13.2]} 12. Bf4 {[%clk 0:04:29.7]} 12...
Rfe8 {[%clk 0:03:52.2]} 13. Nb3 {[%clk 0:04:27.9]} 13... Bb6 {[%clk 0:03:48.2]}
14. Bxh7+ {[%clk 0:04:23.4]} 14... Kxh7 {[%clk 0:03:45.3]} 15. Qd3+ {[%clk
0:04:22.2]} 15... Kg8 {[%clk 0:03:42.4]} 16. Ng5 {[%clk 0:04:21.1]} 16... Kf8
{[%clk 0:03:34.7]} 17. Nh7+ {[%clk 0:04:11.5]} 17... Ke7 {[%clk 0:03:28]} 18.
Bg5+ {[%clk 0:04:11.4]} 18... f6 {[%clk 0:03:25.1]} 19. exf6+ {[%clk 0:04:05.5]}
19... gxf6 {[%clk 0:03:21.7]} 20. Qg6 {[%clk 0:03:49.7]} 20... Qe5 {[%clk
0:02:46.3]} 21. Rae1 {[%clk 0:03:40.9]} 21... Qxb2 {[%clk 0:01:55.9]} 22. Rxe6+
{[%clk 0:03:20.3]} 22... Kxe6 {[%clk 0:01:51.1]} 23. Re1+ {[%clk 0:03:19.9]}
23... Kd6 {[%clk 0:01:28.6]} 24. Bf4+ {[%clk 0:03:18.6]} 24... Ne5 {[%clk
0:01:22.9]} 25. Qxf6+ {[%clk 0:03:17.2]} 25... Kc7 {[%clk 0:01:19.7]} 26. Bxe5+
{[%clk 0:02:58.2]} 26... Kd7 {[%clk 0:00:03.9]} 27. Qf5+ {[%clk 0:02:03.6]} 1-0

[Event "Live Chess"]
[Site "Chess.com"]
[Date "2023.05.20"]
[Round "-"]
[White "ZackirtyChess"]
[Black "VovaOvchar1990"]
[Result "1-0"]
[WhiteElo "1153"]
[BlackElo "1177"]
[TimeControl "300"]
[EndTime "10:04:33 PDT"]
[Termination "ZackirtyChess won by checkmate"]

1. e4 {[%clk 0:04:57.1]} 1... e5 {[%clk 0:04:59.2]} 2. Nf3 {[%clk 0:04:55.3]}
2... Nc6 {[%clk 0:04:58.7]} 3. Bb5 {[%clk 0:04:54.7]} 3... Nge7 {[%clk 0:04:53]}
4. O-O {[%clk 0:04:49]} 4... a6 {[%clk 0:04:51.8]} 5. Ba4 {[%clk 0:04:46.6]}
5... b5 {[%clk 0:04:50.4]} 6. Bb3 {[%clk 0:04:44.8]} 6... a5 {[%clk 0:04:49.4]}
7. a4 {[%clk 0:04:41.4]} 7... b4 {[%clk 0:04:46.8]} 8. c3 {[%clk 0:04:40.3]}
8... Ng6 {[%clk 0:04:40.7]} 9. cxb4 {[%clk 0:04:32.2]} 9... Bxb4 {[%clk
0:04:37.6]} 10. d4 {[%clk 0:04:27.5]} 10... exd4 {[%clk 0:04:31.9]} 11. Nxd4
{[%clk 0:04:23.7]} 11... Nxd4 {[%clk 0:04:30.4]} 12. Qxd4 {[%clk 0:04:23.6]}
12... O-O {[%clk 0:04:28.9]} 13. Nc3 {[%clk 0:04:16.3]} 13... c5 {[%clk
0:04:17.9]} 14. Qd5 {[%clk 0:04:11.4]} 14... Ba6 {[%clk 0:04:12.9]} 15. Re1
{[%clk 0:04:00]} 15... Nf4 {[%clk 0:04:08.4]} 16. Qf5 {[%clk 0:03:50.8]} 16...
Nd3 {[%clk 0:03:40.1]} 17. Re3 {[%clk 0:03:44.2]} 17... c4 {[%clk 0:03:25.9]}
18. Bc2 {[%clk 0:03:29.9]} 18... g6 {[%clk 0:03:19.2]} 19. Qh3 {[%clk
0:03:17.6]} 19... Qf6 {[%clk 0:03:11.5]} 20. Rf3 {[%clk 0:03:15.6]} 20... Qd4
{[%clk 0:03:02.7]} 21. Bxd3 {[%clk 0:03:12.7]} 21... cxd3 {[%clk 0:02:57.2]} 22.
Be3 {[%clk 0:03:11.5]} 22... Qe5 {[%clk 0:02:42.9]} 23. Bf4 {[%clk 0:03:07.6]}
23... Qc5 {[%clk 0:02:36.2]} 24. Qxd7 {[%clk 0:02:59]} 24... Bxc3 {[%clk
0:02:26.2]} 25. bxc3 {[%clk 0:02:54.1]} 25... Qxc3 {[%clk 0:02:24.9]} 26. Rc1
{[%clk 0:02:48.6]} 26... Qa3 {[%clk 0:02:02.5]} 27. Qd4 {[%clk 0:02:39.7]} 27...
Rfd8 {[%clk 0:01:54.3]} 28. Qf6 {[%clk 0:02:32.1]} 28... Rac8 {[%clk 0:01:25]}
29. Rxc8 {[%clk 0:02:17.8]} 29... Rxc8 {[%clk 0:01:21.5]} 30. h3 {[%clk
0:02:11.1]} 30... Qa1+ {[%clk 0:01:08.5]} 31. Qxa1 {[%clk 0:02:06.9]} 31... Rc2
{[%clk 0:01:01.7]} 32. Bh6 {[%clk 0:02:01.9]} 32... d2 {[%clk 0:00:27.4]} 33.
Qg7# {[%clk 0:01:54.5]} 1-0

[Event "Live Chess"]
[Site "Chess.com"]
[Date "2023.05.20"]
[Round "-"]
[White "Conradical12"]
[Black "PaulyD81"]
[Result "0-1"]
[WhiteElo "1485"]
[BlackElo "1124"]
[TimeControl "300"]
[EndTime "10:04:53 PDT"]
[Termination "PaulyD81 won by checkmate"]

1. e4 {[%clk 0:04:59.4]} 1... d5 {[%clk 0:04:58.2]} 2. exd5 {[%clk 0:04:57.5]}
2... Qxd5 {[%clk 0:04:58.1]} 3. Nc3 {[%clk 0:04:56.5]} 3... Qa5 {[%clk
0:04:57.2]} 4. b4 {[%clk 0:04:54.9]} 4... Qxb4 {[%clk 0:04:53.5]} 5. Nb5 {[%clk
0:04:54.4]} 5... Qa5 {[%clk 0:04:50]} 6. Bc4 {[%clk 0:04:51.7]} 6... c6 {[%clk
0:04:43.5]} 7. Bxf7+ {[%clk 0:04:49.7]} 7... Kxf7 {[%clk 0:04:40.1]} 8. Qh5+
{[%clk 0:04:49.2]} 8... g6 {[%clk 0:04:37.4]} 9. Nd6+ {[%clk 0:04:48.4]} 9...
exd6 {[%clk 0:04:35.1]} 10. Qxa5 {[%clk 0:04:48.3]} 10... b6 {[%clk 0:04:25.7]}
11. Qa4 {[%clk 0:04:46.1]} 11... Bb7 {[%clk 0:04:20.3]} 12. Bb2 {[%clk
0:04:44.7]} 12... Nf6 {[%clk 0:04:15.5]} 13. Qf4 {[%clk 0:04:41.4]} 13... Bg7
{[%clk 0:04:13.8]} 14. Qxd6 {[%clk 0:04:39.8]} 14... c5 {[%clk 0:04:01.8]} 15.
Qc7+ {[%clk 0:04:38.6]} 15... Nbd7 {[%clk 0:03:53.6]} 16. Qxb7 {[%clk
0:04:36.1]} 16... Rae8+ {[%clk 0:03:50.9]} 17. Kf1 {[%clk 0:04:34.5]} 17... Ne4
{[%clk 0:03:42.4]} 18. Bxg7 {[%clk 0:04:33.1]} 18... Nxd2# {[%clk 0:03:39.5]}
0-1